[Event "3rd FIDE WCCC Blitz U12 2019"]
[Site "Minsk"]
[Date "2019.08.18"]
[Round "2.1"]
[White "Mikko, Rondo"]
[Black "Cherniaiev, Tykhon"]
[Result "1-0"]
[ECO "A05"]
[WhiteElo "1514"]
[BlackElo "2112"]
[Annotator "NA"]
[PlyCount "96"]
[EventDate "2019.08.18"]
[EventType "swiss"]
[EventCountry "BLR"]
[SourceTitle "playchess.com"]
[Source "ChessBase"]
[SourceQuality "1"]
[TimeControl "300+2"]

1. Nf3 {[%emt 0:00:00]} Nf6 {[%emt 0:00:01]} 2. g3 {[%emt 0:00:02]} b5 {[%emt 0:00:05]} 3. Bg2 {[%emt 0:00:09]} Bb7 {[%emt 0:00:02]} 4. O-O {[%emt 0:00:03]} e6 {[%emt 0:00:08]} 5. d4 {[%emt 0:00:11]} Be7 {[%emt 0:00:09]} 6. b3 {[%emt 0:00:11]} O-O {[%emt 0:00:08]} 7. Bb2 {[%emt 0:00:07]} d5 {[%emt 0:00:07]} 8. e3 {[%emt 0:00:47]} Nbd7 {[%emt 0:00:11]} 9. c3 {[%emt 0:00:23]} c5 {[%emt 0:00:09]} 10. Nbd2 {[%emt 0:00:14]} a5 {[%emt 0:00:07]} 11. a3 {[%emt 0:00:07]} Qc7 {[%emt 0:00:09]} 12. dxc5 {[%emt 0:00:26]} Nxc5 {[%emt 0:00:04]} 13. b4 {[%emt 0:00:14]} Nd3 {[%emt 0:01:06]} 14. Qc2 {[%emt 0:00:08]} Nxb2 {[%emt 0:00:06]} 15. Qxb2 {[%emt 0:00:01]} Rfc8 {[%emt 0:00:15]} 16. Rfc1 {[%emt 0:00:07]} a4 {[%emt 0:00:03]} 17. Nd4 {[%emt 0:00:30]} Ba6 {[%emt 0:00:03]} 18. e4 {[%emt 0:00:12]} dxe4 {[%emt 0:00:38]} 19. Nxe4 {[%emt 0:00:05]} Nd5 {[%emt 0:00:03]} 20. Ne2 {[%emt 0:00:37]} Rab8 {[%emt 0:00:10]} 21. Nd2 {[%emt 0:00:20]} Nb6 {[%emt 0:00:04]} 22. Rc2 {[%emt 0:00:07]} Bf6 {[%emt 0:00:10]} 23. Rac1 {[%emt 0:00:03]} Bb7 {[%emt 0:00:09]} 24. Nd4 {[%emt 0:00:04]} Bxg2 {[%emt 0:00:12]} 25. Kxg2 {[%emt 0:00:02]} Qd7 {[%emt 0:00:12]} 26. Ne4 {[%emt 0:00:12]} Be7 {[%emt 0:00:04]} 27. Nf3 {[%emt 0:00:06]} Nc4 {[%emt 0:00:03]} 28. Qa2 {[%emt 0:00:01]} Qc6 {[%emt 0:00:14]} 29. Ned2 {[%emt 0:00:02]} Ne5 {[%emt 0:00:07]} 30. c4 {[%emt 0:00:07]} bxc4 {[%emt 0:00:04]} 31. Rc3 {[%emt 0:00:02]} Qd5 {[%emt 0:00:08]} 32. Kg1 {[%emt 0:00:04]} Nxf3+ {[%emt 0:00:08]} 33. Nxf3 {[%emt 0:00:02]} Bf6 {[%emt 0:00:09]} 34. Rxc4 {[%emt 0:00:01]} Rd8 {[%emt 0:00:04]} 35. Kg2 {[%emt 0:00:02]} h5 {[%emt 0:00:04]} 36. h4 {[%emt 0:00:02]} Qd3 {[%emt 0:00:07]} 37. Qc2 {[%emt 0:00:05]} Qxa3 {[%emt 0:00:03]} 38. b5 {[%emt 0:00:06]} Ra8 {[%emt 0:00:08]} 39. Rb1 {[%emt 0:00:02]} Qd3 {[%emt 0:00:09]} 40. Qxd3 {[%emt 0:00:06]} Rxd3 {[%emt 0:00:01]} 41. b6 {[%emt 0:00:02]} Rb3 {[%emt 0:00:03]} 42. Rxb3 {[%emt 0:00:03]} axb3 {[%emt 0:00:01]} 43. b7 {[%emt 0:00:00]} Rb8 {[%emt 0:00:13]} 44. Rc8+ {[%emt 0:00:01]} Kh7 {[%emt 0:00:00]} 45. Rxb8 {[%emt 0:00:03]} b2 {[%emt 0:00:01]} 46. Nd2 {[%emt 0:00:01]} Bc3 {[%emt 0:00:02]} 47. Nb1 {[%emt 0:00:01]} Be5 {[%emt 0:00:00]} 48. Rc8 {[%emt 0:00:01]} Kg6 {[%emt 0:00:01]} 1-0

[Event "3rd FIDE WCCC Blitz U12 2019"]
[Site "Minsk"]
[Date "2019.08.18"]
[Round "2.2"]
[White "Khubukshanov, Erdem"]
[Black "Sheremetev, Vladislav"]
[Result "1-0"]
[ECO "D23"]
[WhiteElo "2257"]
[BlackElo "1634"]
[Annotator "NA"]
[PlyCount "168"]
[EventDate "2019.08.18"]
[EventType "swiss"]
[EventCountry "BLR"]
[SourceTitle "playchess.com"]
[Source "ChessBase"]
[SourceQuality "1"]
[TimeControl "300+2"]

1. Nf3 {[%emt 0:00:00]} Nf6 {[%emt 0:00:00]} 2. d4 {[%emt 0:00:01]} d5 {[%emt 0:00:01]} 3. c4 dxc4 {[%emt 0:00:02]} 4. Qa4+ {[%emt 0:00:09]} Nbd7 {[%emt 0:00:10]} 5. Qxc4 {[%emt 0:00:02]} a6 {[%emt 0:00:03]} 6. g3 {[%emt 0:00:05]} e6 {[%emt 0:00:27]} 7. Bg2 {[%emt 0:00:06]} b5 {[%emt 0:00:22]} 8. Qc6 {[%emt 0:00:20]} Rb8 {[%emt 0:00:03]} 9. O-O {[%emt 0:00:07]} Bb7 {[%emt 0:00:02]} 10. Qc2 {[%emt 0:00:02]} c5 {[%emt 0:00:08]} 11. Rd1 {[%emt 0:00:03]} Qb6 {[%emt 0:00:03]} 12. e3 {[%emt 0:01:00]} cxd4 {[%emt 0:00:13]} 13. Rxd4 {[%emt 0:00:01]} Bc5 {[%emt 0:00:03]} 14. Rd1 {[%emt 0:00:06]} O-O {[%emt 0:00:24]} 15. Nc3 {[%emt 0:00:01]} Rbc8 {[%emt 0:00:05]} 16. Qe2 {[%emt 0:00:03]} Rfd8 {[%emt 0:00:24]} 17. Bd2 {[%emt 0:00:01]} h6 {[%emt 0:00:05]} 18. Be1 {[%emt 0:00:03]} Nb8 {[%emt 0:00:27]} 19. a3 {[%emt 0:00:32]} Rxd1 {[%emt 0:00:56]} 20. Rxd1 {[%emt 0:00:02]} Rd8 {[%emt 0:00:01]} 21. Nh4 {[%emt 0:00:43]} Bxg2 {[%emt 0:00:08]} 22. Nxg2 {[%emt 0:00:02]} Nc6 {[%emt 0:00:08]} 23. Nf4 {[%emt 0:00:07]} Be7 {[%emt 0:00:18]} 24. Nd3 {[%emt 0:00:46]} Na5 {[%emt 0:00:41]} 25. Ne5 {[%emt 0:00:10]} Nc6 {[%emt 0:00:12]} 26. Nf3 {[%emt 0:00:14]} Na5 {[%emt 0:00:05]} 27. Nb1 {[%emt 0:00:09]} Nc4 {[%emt 0:00:06]} 28. Nd4 {[%emt 0:00:02]} Bc5 {[%emt 0:00:07]} 29. Bc3 {[%emt 0:00:02]} Nd5 {[%emt 0:00:03]} 30. Nb3 {[%emt 0:00:08]} Nxc3 {[%emt 0:00:03]} 31. Nxc3 {[%emt 0:00:04]} Be7 {[%emt 0:00:03]} 32. Nd4 {[%emt 0:00:07]} Bf6 {[%emt 0:00:02]} 33. Nb3 {[%emt 0:00:21]} Rxd1+ {[%emt 0:00:04]} 34. Nxd1 {[%emt 0:00:01]} Qd8 {[%emt 0:00:03]} 35. Kf1 {[%emt 0:00:05]} Qd5 {[%emt 0:00:02]} 36. e4 {[%emt 0:00:10]} Qd7 {[%emt 0:00:04]} 37. Nc5 {[%emt 0:00:03]} Qc6 {[%emt 0:00:01]} 38. Nd3 {[%emt 0:00:02]} Be7 {[%emt 0:00:02]} 39. f3 {[%emt 0:00:01]} Bc5 {[%emt 0:00:02]} 40. Nxc5 Qxc5 {[%emt 0:00:01]} 41. Qd3 {[%emt 0:00:09]} Qd6 {[%emt 0:00:02]} 42. Qxd6 Nxd6 {[%emt 0:00:01]} 43. Ke2 {[%emt 0:00:02]} Kf8 {[%emt 0:00:02]} 44. Kd3 {[%emt 0:00:03]} Ke7 {[%emt 0:00:02]} 45. Kd4 {[%emt 0:00:00]} Nb7 {[%emt 0:00:01]} 46. e5 {[%emt 0:00:08]} Kd7 {[%emt 0:00:02]} 47. Ne3 {[%emt 0:00:03]} Kc6 {[%emt 0:00:01]} 48. Nc2 {[%emt 0:00:01]} Nc5 {[%emt 0:00:02]} 49. Nb4+ {[%emt 0:00:04]} Kb6 {[%emt 0:00:00]} 50. Nc2 {[%emt 0:00:02]} Nb3+ {[%emt 0:00:04]} 51. Kc3 {[%emt 0:00:01]} Nc5 {[%emt 0:00:01]} 52. Ne3 {[%emt 0:00:03]} Na4+ {[%emt 0:00:01]} 53. Kc2 {[%emt 0:00:03]} Kc5 {[%emt 0:00:02]} 54. b3 {[%emt 0:00:03]} Nb6 {[%emt 0:00:00]} 55. Kd3 {[%emt 0:00:00]} Nd5 {[%emt 0:00:02]} 56. Nc2 {[%emt 0:00:02]} a5 {[%emt 0:00:00]} 57. h4 {[%emt 0:00:02]} b4 {[%emt 0:00:03]} 58. a4 {[%emt 0:00:01]} h5 {[%emt 0:00:06]} 59. f4 {[%emt 0:00:01]} g6 {[%emt 0:00:01]} 60. Nd4 {[%emt 0:00:01]} Nc3 {[%emt 0:00:03]} 61. Nf3 {[%emt 0:00:02]} Nd5 {[%emt 0:00:02]} 62. Ng5 Ne7 {[%emt 0:00:06]} 63. Nxf7 {[%emt 0:00:03]} Nf5 {[%emt 0:00:01]} 64. Ng5 {[%emt 0:00:03]} Kd5 {[%emt 0:00:01]} 65. Ne4 {[%emt 0:00:05]} Ne7 {[%emt 0:00:04]} 66. Nf6+ {[%emt 0:00:02]} Kc6 {[%emt 0:00:01]} 67. Kc4 {[%emt 0:00:04]} Nf5 {[%emt 0:00:03]} 68. Ne4 {[%emt 0:00:01]} Ne3+ {[%emt 0:00:01]} 69. Kd3 {[%emt 0:00:01]} Nf5 {[%emt 0:00:01]} 70. Ng5 {[%emt 0:00:01]} Kd5 {[%emt 0:00:02]} 71. Ne4 {[%emt 0:00:01]} Kc6 {[%emt 0:00:01]} 72. Kc4 {[%emt 0:00:03]} Ne3+ {[%emt 0:00:01]} 73. Kd4 {[%emt 0:00:01]} Nf5+ {[%emt 0:00:01]} 74. Kd3 {[%emt 0:00:00]} Kd5 {[%emt 0:00:03]} 75. Nf6+ {[%emt 0:00:03]} Kc6 {[%emt 0:00:00]} 76. Nh7 {[%emt 0:00:03]} Nxg3 {[%emt 0:00:05]} 77. Nf8 {[%emt 0:00:00]} Nf5 {[%emt 0:00:04]} 78. Nxe6 {[%emt 0:00:03]} Nxh4 {[%emt 0:00:01]} 79. Ke4 {[%emt 0:00:02]} Nf5 {[%emt 0:00:03]} 80. Nf8 {[%emt 0:00:04]} Ne7 {[%emt 0:00:01]} 81. Ne6 {[%emt 0:00:02]} Nf5 {[%emt 0:00:04]} 82. Ng5 {[%emt 0:00:05]} Ne7 {[%emt 0:00:03]} 83. Nf3 {[%emt 0:00:03]} Kc5 {[%emt 0:00:03]} 84. Nh4 {[%emt 0:00:01]} Kc6 {[%emt 0:00:01]} 1-0

[Event "3rd FIDE WCCC Blitz U12 2019"]
[Site "Minsk"]
[Date "2019.08.18"]
[Round "2.3"]
[White "Demchenko, Yaroslav"]
[Black "Strybuk, Artsiom I"]
[Result "1/2-1/2"]
[ECO "C50"]
[WhiteElo "1581"]
[BlackElo "2200"]
[Annotator "NA"]
[PlyCount "125"]
[EventDate "2019.08.18"]
[EventType "swiss"]
[EventCountry "BLR"]
[SourceTitle "playchess.com"]
[Source "ChessBase"]
[SourceQuality "1"]
[TimeControl "300+2"]

1. e4 {[%emt 0:00:00]} e5 {[%emt 0:00:00]} 2. Nf3 {[%emt 0:00:00]} Nc6 {[%emt 0:00:00]} 3. Bc4 {[%emt 0:00:01]} Bc5 {[%emt 0:00:01]} 4. O-O {[%emt 0:00:02]} Nf6 {[%emt 0:00:00]} 5. d4 {[%emt 0:00:01]} Nxd4 {[%emt 0:00:59]} 6. Nxe5 {[%emt 0:00:01]} O-O {[%emt 0:00:02]} 7. Be3 {[%emt 0:00:01]} Ne6 {[%emt 0:00:57]} 8. Bxe6 {[%emt 0:00:03]} Bxe3 {[%emt 0:00:00]} 9. Bxf7+ {[%emt 0:00:02]} Rxf7 {[%emt 0:00:01]} 10. Nxf7 {[%emt 0:00:02]} Kxf7 {[%emt 0:00:41]} 11. fxe3 {[%emt 0:00:01]} Qe7 {[%emt 0:00:31]} 12. Nc3 {[%emt 0:00:22]} c6 {[%emt 0:00:01]} 13. Qd4 {[%emt 0:00:26]} d6 {[%emt 0:00:09]} 14. Rad1 {[%emt 0:00:02]} Bg4 {[%emt 0:00:03]} 15. Rd2 {[%emt 0:00:13]} Re8 {[%emt 0:01:01]} 16. Qxd6 {[%emt 0:00:16]} Qxd6 {[%emt 0:00:01]} 17. Rxd6 Ke7 18. Rd2 {[%emt 0:00:29]} Nd7 {[%emt 0:00:05]} 19. h3 {[%emt 0:00:10]} Be6 {[%emt 0:00:01]} 20. b3 {[%emt 0:00:18]} Ne5 {[%emt 0:00:06]} 21. Ne2 {[%emt 0:00:05]} Bc8 {[%emt 0:00:08]} 22. Nf4 {[%emt 0:00:03]} b6 {[%emt 0:00:32]} 23. Nh5 {[%emt 0:00:43]} Rg8 {[%emt 0:00:03]} 24. Nf4 {[%emt 0:00:13]} Re8 {[%emt 0:00:03]} 25. Nh5 {[%emt 0:00:02]} Rg8 {[%emt 0:00:03]} 26. Nf4 {[%emt 0:00:01]} Re8 27. Rfd1 g5 {[%emt 0:00:06]} 28. Nd3 {[%emt 0:00:00]} Nf7 {[%emt 0:00:01]} 29. Nb4 {[%emt 0:00:00]} Ne5 {[%emt 0:00:00]} 30. Rd6 {[%emt 0:00:00]} Bd7 {[%emt 0:00:00]} 31. Rh6 {[%emt 0:00:00]} Rh8 {[%emt 0:00:02]} 32. Rh5 {[%emt 0:00:16]} h6 {[%emt 0:00:01]} 33. Nd3 {[%emt 0:00:26]} Nxd3 34. cxd3 {[%emt 0:00:02]} Be8 {[%emt 0:00:13]} 35. g4 {[%emt 0:00:00]} Ke6 {[%emt 0:00:05]} 36. Kg2 {[%emt 0:00:03]} Bxh5 {[%emt 0:00:02]} 37. gxh5 {[%emt 0:00:01]} Rd8 {[%emt 0:00:00]} 38. Kg3 {[%emt 0:00:13]} Ke5 {[%emt 0:00:04]} 39. Kf2 {[%emt 0:00:07]} a5 {[%emt 0:00:08]} 40. Ke2 {[%emt 0:00:00]} c5 {[%emt 0:00:03]} 41. Rf1 {[%emt 0:00:03]} Ke6 {[%emt 0:00:01]} 42. a4 {[%emt 0:00:13]} Ke7 {[%emt 0:00:03]} 43. Rf5 {[%emt 0:00:02]} Ke6 {[%emt 0:00:00]} 44. Kd2 {[%emt 0:00:05]} Ke7 {[%emt 0:00:05]} 45. Re5+ {[%emt 0:00:08]} Kf6 {[%emt 0:00:04]} 46. Rd5 {[%emt 0:00:03]} Rb8 {[%emt 0:00:01]} 47. Rd6+ {[%emt 0:00:02]} Kg7 {[%emt 0:00:01]} 48. e5 {[%emt 0:00:01]} Rb7 {[%emt 0:00:04]} 49. d4 {[%emt 0:00:01]} cxd4 {[%emt 0:00:02]} 50. exd4 {[%emt 0:00:01]} b5 {[%emt 0:00:01]} 51. e6 {[%emt 0:00:20]} Kf6 {[%emt 0:00:02]} 52. e7+ {[%emt 0:00:06]} Kxe7 {[%emt 0:00:01]} 53. Rxh6 {[%emt 0:00:02]} Rb8 {[%emt 0:00:01]} 54. Rh7+ {[%emt 0:00:02]} Kf6 {[%emt 0:00:02]} 55. Rc7 {[%emt 0:00:05]} bxa4 {[%emt 0:00:01]} 56. bxa4 {[%emt 0:00:01]} Rb4 {[%emt 0:00:01]} 57. Kc3 {[%emt 0:00:03]} Rxa4 {[%emt 0:00:01]} 58. h6 {[%emt 0:00:18]} Ra3+ {[%emt 0:00:02]} 59. Kc4 {[%emt 0:00:03]} Rxh3 {[%emt 0:00:01]} 60. Kb5 {[%emt 0:00:02]} Ke6 {[%emt 0:00:05]} 61. Kxa5 {[%emt 0:00:03]} Kd6 {[%emt 0:00:01]} 62. Rb7 {[%emt 0:00:04]} Kd5 {[%emt 0:00:01]} 63. Rd7+ {[%emt 0:00:02]} 1/2-1/2

[Event "3rd FIDE WCCC Blitz U12 2019"]
[Site "Minsk"]
[Date "2019.08.18"]
[Round "2.4"]
[White "Israfilov, Ali"]
[Black "Burbach, Brunel Baron"]
[Result "0-1"]
[ECO "E46"]
[WhiteElo "1857"]
[BlackElo "1548"]
[Annotator "NA"]
[PlyCount "91"]
[EventDate "2019.08.18"]
[EventType "swiss"]
[EventCountry "BLR"]
[SourceTitle "playchess.com"]
[Source "ChessBase"]
[SourceQuality "1"]
[TimeControl "300+2"]

1. d4 {[%emt 0:00:00]} Nf6 {[%emt 0:00:00]} 2. c4 {[%emt 0:00:00]} e6 {[%emt 0:00:00]} 3. Nc3 {[%emt 0:00:02]} Bb4 {[%emt 0:00:01]} 4. e3 {[%emt 0:00:00]} O-O {[%emt 0:00:05]} 5. Nge2 {[%emt 0:00:01]} d5 {[%emt 0:00:04]} 6. a3 {[%emt 0:00:02]} Bd6 {[%emt 0:00:10]} 7. Ng3 {[%emt 0:00:03]} c5 {[%emt 0:00:21]} 8. dxc5 {[%emt 0:00:25]} Bxc5 {[%emt 0:00:08]} 9. cxd5 {[%emt 0:00:02]} Nxd5 {[%emt 0:00:16]} 10. Nxd5 {[%emt 0:00:03]} Qxd5 {[%emt 0:00:06]} 11. Qxd5 {[%emt 0:00:09]} exd5 {[%emt 0:00:02]} 12. b4 {[%emt 0:00:05]} Bb6 {[%emt 0:00:18]} 13. Bb2 {[%emt 0:00:02]} a5 {[%emt 0:00:30]} 14. Be2 {[%emt 0:00:32]} Be6 {[%emt 0:00:24]} 15. O-O {[%emt 0:00:04]} axb4 {[%emt 0:00:18]} 16. axb4 {[%emt 0:00:01]} Nd7 {[%emt 0:00:06]} 17. Bf3 {[%emt 0:00:17]} Bc7 {[%emt 0:00:39]} 18. Rac1 {[%emt 0:00:38]} Bd6 {[%emt 0:00:05]} 19. Rfd1 {[%emt 0:00:06]} Nb6 {[%emt 0:00:23]} 20. e4 {[%emt 0:00:20]} dxe4 {[%emt 0:00:42]} 21. Rxd6 {[%emt 0:00:08]} Nc4 {[%emt 0:00:06]} 22. Rxe6 {[%emt 0:00:22]} fxe6 {[%emt 0:00:03]} 23. Rxc4 {[%emt 0:00:02]} exf3 {[%emt 0:00:03]} 24. gxf3 {[%emt 0:00:01]} Rxf3 {[%emt 0:00:08]} 25. Kg2 {[%emt 0:00:04]} Rf7 {[%emt 0:00:04]} 26. Bd4 {[%emt 0:00:15]} h6 {[%emt 0:00:08]} 27. Nh5 {[%emt 0:00:37]} b5 {[%emt 0:00:08]} 28. Rc6 {[%emt 0:00:06]} e5 {[%emt 0:00:07]} 29. Bxe5 {[%emt 0:00:11]} Rf5 {[%emt 0:00:02]} 30. Bxg7 {[%emt 0:00:23]} Rxh5 {[%emt 0:00:10]} 31. Bxh6 {[%emt 0:00:02]} Rh4 {[%emt 0:00:04]} 32. Bd2 {[%emt 0:00:30]} Ra2 {[%emt 0:00:08]} 33. Bc3 {[%emt 0:00:08]} Rc4 {[%emt 0:00:02]} 34. Rg6+ {[%emt 0:00:01]} Kf7 {[%emt 0:00:03]} 35. Rf6+ {[%emt 0:00:02]} Kg8 {[%emt 0:00:03]} 36. Rf3 {[%emt 0:00:02]} Ra3 {[%emt 0:00:05]} 37. Bd2 {[%emt 0:00:14]} Rxf3 {[%emt 0:00:02]} 38. Kxf3 {[%emt 0:00:01]} Kf7 {[%emt 0:00:00]} 39. Ke3 {[%emt 0:00:04]} Ke6 {[%emt 0:00:04]} 40. f3 {[%emt 0:00:03]} Ke5 {[%emt 0:00:02]} 41. Be1 {[%emt 0:00:06]} Kf5 {[%emt 0:00:04]} 42. h4 {[%emt 0:00:02]} Rc1 {[%emt 0:00:03]} 43. Bg3 {[%emt 0:00:05]} Rb1 {[%emt 0:00:03]} 44. Bd6 {[%emt 0:00:02]} Rd1 {[%emt 0:00:01]} 45. Bc5 {[%emt 0:00:03]} Rh1 46. Bd6 0-1

[Event "3rd FIDE WCCC Blitz U12 2019"]
[Site "Minsk"]
[Date "2019.08.18"]
[Round "2.5"]
[White "Sahib Singh"]
[Black "Saveljev, Ivan"]
[Result "1-0"]
[ECO "B33"]
[WhiteElo "1556"]
[BlackElo "2040"]
[Annotator "NA"]
[PlyCount "135"]
[EventDate "2019.08.18"]
[EventType "swiss"]
[EventCountry "BLR"]
[SourceTitle "playchess.com"]
[Source "ChessBase"]
[SourceQuality "1"]
[TimeControl "300+2"]

1. e4 {[%emt 0:00:00]} c5 {[%emt 0:00:00]} 2. Nf3 {[%emt 0:00:00]} Nc6 {[%emt 0:00:00]} 3. d4 {[%emt 0:00:01]} cxd4 4. Nxd4 {[%emt 0:00:01]} Nf6 {[%emt 0:00:01]} 5. Nc3 {[%emt 0:00:01]} e5 {[%emt 0:00:02]} 6. Ndb5 {[%emt 0:00:00]} d6 {[%emt 0:00:01]} 7. Bg5 {[%emt 0:00:01]} a6 {[%emt 0:00:00]} 8. Na3 {[%emt 0:00:02]} b5 {[%emt 0:00:01]} 9. Nd5 {[%emt 0:00:00]} Be7 {[%emt 0:00:02]} 10. Bxf6 {[%emt 0:00:02]} Bxf6 {[%emt 0:00:01]} 11. c3 {[%emt 0:00:00]} O-O {[%emt 0:00:04]} 12. Nc2 {[%emt 0:00:02]} Bg5 {[%emt 0:00:01]} 13. Bd3 {[%emt 0:00:10]} Kh8 {[%emt 0:00:05]} 14. O-O {[%emt 0:00:03]} Be6 {[%emt 0:00:21]} 15. Nce3 {[%emt 0:00:14]} g6 {[%emt 0:00:20]} 16. f4 {[%emt 0:00:26]} exf4 {[%emt 0:00:26]} 17. Nxf4 {[%emt 0:00:03]} Qb6 {[%emt 0:00:06]} 18. Qd2 {[%emt 0:00:33]} Rad8 {[%emt 0:01:15]} 19. Kh1 {[%emt 0:00:08]} Ne5 {[%emt 0:00:16]} 20. Qe2 {[%emt 0:01:11]} Nxd3 21. Qxd3 {[%emt 0:00:02]} Qc5 {[%emt 0:01:34]} 22. Nfd5 {[%emt 0:00:38]} Bxe3 {[%emt 0:00:38]} 23. Nxe3 {[%emt 0:00:30]} Rfe8 {[%emt 0:00:05]} 24. Nd5 {[%emt 0:00:10]} f5 {[%emt 0:00:10]} 25. Rad1 {[%emt 0:00:56]} Bxd5 {[%emt 0:00:02]} 26. exd5 {[%emt 0:00:16]} Re5 {[%emt 0:00:03]} 27. b4 {[%emt 0:00:07]} Qb6 {[%emt 0:00:04]} 28. Qg3 {[%emt 0:00:06]} Rde8 {[%emt 0:00:03]} 29. Qh4 {[%emt 0:00:01]} Kg7 {[%emt 0:00:03]} 30. Rd4 {[%emt 0:00:03]} Re4 {[%emt 0:00:02]} 31. Rxe4 {[%emt 0:00:04]} Rxe4 {[%emt 0:00:01]} 32. Qg3 {[%emt 0:00:03]} Re3 {[%emt 0:00:06]} 33. Qg5 {[%emt 0:00:01]} Re4 {[%emt 0:00:03]} 34. h4 {[%emt 0:00:03]} Qc7 {[%emt 0:00:05]} 35. Rxf5 {[%emt 0:00:04]} Qxc3 {[%emt 0:00:02]} 36. Rf3 {[%emt 0:00:05]} Re1+ {[%emt 0:00:02]} 37. Kh2 {[%emt 0:00:01]} Qe5+ {[%emt 0:00:01]} 38. Qxe5+ {[%emt 0:00:01]} Rxe5 {[%emt 0:00:01]} 39. Ra3 {[%emt 0:00:02]} Rxd5 {[%emt 0:00:03]} 40. Rxa6 {[%emt 0:00:01]} Rd4 {[%emt 0:00:03]} 41. Kh3 {[%emt 0:00:02]} Kf6 {[%emt 0:00:01]} 42. a3 Ke5 {[%emt 0:00:02]} 43. Ra5 {[%emt 0:00:01]} Rd5 {[%emt 0:00:02]} 44. Kg4 {[%emt 0:00:03]} Ke6 {[%emt 0:00:02]} 45. Ra8 {[%emt 0:00:01]} h5+ {[%emt 0:00:02]} 46. Kf4 {[%emt 0:00:01]} Rd4+ {[%emt 0:00:02]} 47. Kg5 {[%emt 0:00:01]} Rg4+ {[%emt 0:00:00]} 48. Kh6 Rxg2 {[%emt 0:00:02]} 49. Ra5 {[%emt 0:00:04]} Rg4 {[%emt 0:00:06]} 50. Rxb5 {[%emt 0:00:01]} Rxh4 {[%emt 0:00:01]} 51. Kxg6 {[%emt 0:00:01]} Rh3 {[%emt 0:00:01]} 52. a4 {[%emt 0:00:04]} h4 {[%emt 0:00:01]} 53. Rh5 {[%emt 0:00:05]} Rg3+ {[%emt 0:00:02]} 54. Kh7 {[%emt 0:00:01]} h3 {[%emt 0:00:02]} 55. a5 {[%emt 0:00:01]} Kd7 {[%emt 0:00:01]} 56. b5 {[%emt 0:00:03]} Kc7 {[%emt 0:00:01]} 57. b6+ {[%emt 0:00:01]} Kb7 {[%emt 0:00:00]} 58. Kh6 {[%emt 0:00:01]} Ka6 {[%emt 0:00:06]} 59. Kh7 {[%emt 0:00:02]} Kb7 {[%emt 0:00:05]} 60. Kh8 {[%emt 0:00:01]} Rd3 61. Rh7+ {[%emt 0:00:02]} Ka6 {[%emt 0:00:05]} 62. Ra7+ {[%emt 0:00:04]} Kb5 {[%emt 0:00:02]} 63. b7 h2 {[%emt 0:00:02]} 64. b8=Q+ {[%emt 0:00:02]} Kc5 {[%emt 0:00:02]} 65. Qb6+ Kd5 66. Qb7+ {[%emt 0:00:03]} Ke5 {[%emt 0:00:01]} 67. Qb5+ {[%emt 0:00:01]} Rd5 {[%emt 0:00:01]} 68. Qe2+ {[%emt 0:00:01]} 1-0

[Event "3rd FIDE WCCC Blitz U12 2019"]
[Site "Minsk"]
[Date "2019.08.18"]
[Round "2.6"]
[White "Sapenov, Daniyal"]
[Black "Kolesov, Gordey"]
[Result "1/2-1/2"]
[ECO "A46"]
[WhiteElo "1612"]
[BlackElo "1761"]
[Annotator "NA"]
[PlyCount "127"]
[EventDate "2019.08.18"]
[EventType "swiss"]
[EventCountry "BLR"]
[SourceTitle "playchess.com"]
[Source "ChessBase"]
[SourceQuality "1"]
[TimeControl "300+2"]

1. d4 {[%emt 0:00:00]} Nf6 {[%emt 0:00:00]} 2. Nf3 {[%emt 0:00:00]} d5 {[%emt 0:00:00]} 3. g3 {[%emt 0:00:01]} e6 {[%emt 0:00:03]} 4. Bg2 {[%emt 0:00:01]} Be7 {[%emt 0:00:00]} 5. O-O {[%emt 0:00:01]} O-O {[%emt 0:00:01]} 6. b3 {[%emt 0:00:02]} c5 {[%emt 0:00:06]} 7. Bb2 {[%emt 0:00:01]} cxd4 {[%emt 0:00:04]} 8. Nxd4 {[%emt 0:00:02]} Nc6 {[%emt 0:00:10]} 9. e3 {[%emt 0:00:06]} Nxd4 {[%emt 0:00:20]} 10. Bxd4 {[%emt 0:00:02]} Qc7 {[%emt 0:00:12]} 11. Nd2 {[%emt 0:00:19]} e5 {[%emt 0:00:25]} 12. Bb2 {[%emt 0:00:02]} Bg4 {[%emt 0:00:02]} 13. Qc1 {[%emt 0:00:14]} Rac8 {[%emt 0:00:13]} 14. c4 {[%emt 0:00:14]} dxc4 {[%emt 0:00:19]} 15. Nxc4 {[%emt 0:00:01]} e4 {[%emt 0:00:16]} 16. Bd4 {[%emt 0:02:37]} b6 {[%emt 0:01:05]} 17. Qb2 {[%emt 0:00:10]} Qd7 {[%emt 0:00:33]} 18. Ne5 {[%emt 0:00:16]} Qf5 {[%emt 0:00:01]} 19. Nxg4 {[%emt 0:00:04]} Qxg4 {[%emt 0:00:04]} 20. Rac1 {[%emt 0:00:08]} Qf5 {[%emt 0:00:12]} 21. h3 {[%emt 0:00:12]} Qa5 {[%emt 0:00:05]} 22. Rxc8 Rxc8 {[%emt 0:00:01]} 23. Rc1 {[%emt 0:00:33]} Re8 {[%emt 0:00:15]} 24. a4 {[%emt 0:00:08]} Qf5 {[%emt 0:00:15]} 25. Rc2 {[%emt 0:00:16]} Qg6 {[%emt 0:00:11]} 26. Qc1 {[%emt 0:00:02]} Nd5 {[%emt 0:00:13]} 27. Rc8 {[%emt 0:00:03]} Rxc8 {[%emt 0:00:02]} 28. Qxc8+ Bf8 29. Qd7 {[%emt 0:00:05]} Nb4 {[%emt 0:00:15]} 30. Qe8 {[%emt 0:00:12]} f5 {[%emt 0:00:20]} 31. Qxg6 hxg6 {[%emt 0:00:01]} 32. Bf1 {[%emt 0:00:01]} Nc2 {[%emt 0:00:06]} 33. Bc4+ {[%emt 0:00:03]} Kh7 {[%emt 0:00:03]} 34. Bc3 {[%emt 0:00:03]} Bc5 {[%emt 0:00:05]} 35. Kf1 {[%emt 0:00:03]} g5 {[%emt 0:00:06]} 36. Ke2 {[%emt 0:00:02]} Nb4 {[%emt 0:00:03]} 37. Be6 {[%emt 0:00:04]} Kg6 {[%emt 0:00:02]} 38. Bxb4 Bxb4 {[%emt 0:00:01]} 39. Bc4 {[%emt 0:00:05]} Kf6 {[%emt 0:00:01]} 40. f3 {[%emt 0:00:02]} exf3+ {[%emt 0:00:03]} 41. Kxf3 {[%emt 0:00:01]} Ke5 {[%emt 0:00:01]} 42. g4 {[%emt 0:00:03]} f4 {[%emt 0:00:02]} 43. exf4+ gxf4 {[%emt 0:00:01]} 44. Bf7 {[%emt 0:00:03]} g5 {[%emt 0:00:02]} 45. Bc4 {[%emt 0:00:01]} Be7 {[%emt 0:00:04]} 46. Bf7 {[%emt 0:00:02]} Bd6 {[%emt 0:00:01]} 47. Bc4 {[%emt 0:00:01]} Kd4 {[%emt 0:00:00]} 48. Bg8 {[%emt 0:00:02]} Kc3 {[%emt 0:00:02]} 49. Bf7 {[%emt 0:00:01]} Kb4 {[%emt 0:00:01]} 50. Bc4 {[%emt 0:00:02]} Be5 {[%emt 0:00:03]} 51. Bf7 {[%emt 0:00:01]} Kc3 {[%emt 0:00:02]} 52. Bc4 {[%emt 0:00:01]} Kd2 {[%emt 0:00:01]} 53. Bb5 {[%emt 0:00:05]} Kc2 {[%emt 0:00:04]} 54. Bc4 {[%emt 0:00:01]} Bd6 {[%emt 0:00:00]} 55. Bd5 {[%emt 0:00:02]} Kc3 {[%emt 0:00:03]} 56. Bc4 {[%emt 0:00:04]} Be5 {[%emt 0:00:03]} 57. Bd5 {[%emt 0:00:01]} Kd2 {[%emt 0:00:00]} 58. Bc4 {[%emt 0:00:02]} Ke1 {[%emt 0:00:02]} 59. Bb5 {[%emt 0:00:00]} Bd6 {[%emt 0:00:04]} 60. Bc4 {[%emt 0:00:02]} Kd1 {[%emt 0:00:03]} 61. Bd5 {[%emt 0:00:03]} Kd2 {[%emt 0:00:01]} 62. Bc4 {[%emt 0:00:02]} Bc7 {[%emt 0:00:03]} 63. Bd5 {[%emt 0:00:02]} Ke1 {[%emt 0:00:01]} 64. Bc4 {[%emt 0:00:00]} 1/2-1/2